Cogmind - Beta 10.2 @@@ ROGUE MODE // 2021.10.25 @ 20:10:42 Player: ZEROAFFEX Result: Destroyed by G-47 Trooper with Particle Gun Performance ------------- Evolutions (0) 0 Regions Visited (2) 400 Robots Destroyed (9) 45 Value Destroyed (238) 238 Prototype IDs (0) 0 Alien Tech Used (0) 0 Bonus (0) 0 TOTAL SCORE: 683 Bonus ------- None Cogmind --------- Core Integrity 0/250 Matter 265/300 Energy 160/160 System Corruption 0% Temperature Cool (9) Movement Treading (160) Location -10/Mines Parts ------- > --- POWER (1) -------- Light Nuclear Core > --- PROPULSION (2) --- Light Treads Compact Wheel > --- UTILITY (2) ------ Small Storage Unit Medium Storage Unit > --- WEAPON (2) ------- (None) > --- INVENTORY (10) --- Compact Wheel Small Storage Unit Peak State ------------ > --- POWER ------------ Light Nuclear Core > --- PROPULSION ------- Light Treads Wheel > --- UTILITY ---------- Small Storage Unit Small Storage Unit > --- WEAPON ----------- Assault Rifle Light Assault Rifle > --- INVENTORY -------- Light Ion Engine Light Ion Engine Light Treads Wheel Compact Wheel Compact Wheel Medium Laser [Rating: 9] Favorites ----------- Power Light Ion Engine Engine Light Ion Engine Power Core Light Nuclear Core Propulsion Light Treads Treads Light Treads Wheel Wheel Utility Small Storage Unit Storage Small Storage Unit Weapon Light Assault Rifle Energy Gun Medium Laser Ballistic Gun Light Assault Rifle Special Weapon Mining Laser Build | -11 -10 -10 ------- Run | Scr Mat Min Slots Evolved . | . . . Power . | . . . Propulsion . | . . . Utility . | . . . Weapon . | . . . Parts Attached 19 | 8 6 5 Power 4 | 1 2 1 Engine 2 | 1 1 . Core 2 | . 1 1 Reactor . | . . . Propulsion 6 | 3 1 2 Treads 2 | 1 . 1 Leg . | . . . Wheel 4 | 2 1 1 Hover . | . . . Flight . | . . . Utility 3 | 2 . 1 Device . | . . . Storage 3 | 2 . 1 Processor . | . . . Hackware . | . . . Protection . | . . . Artifact . | . . . Weapon 6 | 2 3 1 Energy Gun 1 | . 1 . Energy Cannon . | . . . Ballistic Gun 2 | 2 . . Ballistic Cannon . | . . . Launcher . | . . . Special Weapon 3 | . 2 1 Impact Weapon . | . . . Slashing Weapon . | . . . Piercing Weapon . | . . . Special Melee Weapon . | . . . Unidentified Prototypes . | . . . Parts Lost 11 | . 5 6 Power 2 | . 1 1 Propulsion 3 | . 1 2 Utility . | . . . Weapon 6 | . 3 3 Highest Loss Streak 6 | . 5 6 Average Slot Usage (%) 91 | . 93 88 Engine 10 | . 10 10 Core 2 | . 3 2 Treads 13 | . 14 10 Wheel 12 | . 12 13 Storage 28 | . 28 28 Ballistic Gun 13 | . 19 . Special Weapon 8 | . 2 21 Naked Turns . | . . . Heaviest Build 17 | 14 16 17 Greatest Support 20 | 20 20 20 Greatest Overweight (x) 1 | 1 1 1 Average Overweight (x) . | . . . Largest Inventory Capacity 10 | 8 8 10 Average Capacity 8 | 6 8 9 Most Carried 7 | 6 7 6 Average Carried 4 | 3 5 4 Final Capacity 10 | 8 8 10 Final Carried 6 | 6 5 2 Class Distribution -------------------- 100% | Mutant Dominant Class ---------------- Mutant | -10/Materials Mutant | -10/Mines Resources | -11 -10 -10 ----------- Run | Scr Mat Min Matter Collected 449 | 324 125 . Remotely . | . . . Salvage Created 357 | 119 238 . Parts 11 | 5 6 . Haulers Intercepted . | . . . Recyclers Shooed . | . . . Parts Field Recycled . | . . . Retrieved Matter . | . . . Parts Self-Destructed . | . . . Prevented . | . . . Kills | -11 -10 -10 ------- Run | Scr Mat Min Combat Hostiles Destroyed 6 | . 6 . Guns 5 | . 5 . Cannons 1 | . 1 . Classes Destroyed 3 | 2 1 . Worker 2 | 2 . . Recycler 1 | 1 . . Grunt 6 | . 6 . Best Kill Streak 2 | 2 2 . Combat Bots Only 2 | . 2 . Max Kills in Single Turn 1 | 1 1 . Gunslinging . | . . . Exploded . | . . . Melee . | . . . Uniques/NPCs Destroyed . | . . . Combat | -11 -10 -10 -------- Run | Scr Mat Min Damage Taken 1232 | . 701 531 Core 255 | . 143 112 Absorbed by Shields . | . . . Core Remaining (%) 100 | 100 . . Volleys Fired 64 | 11 39 14 Largest 2 | 2 2 2 Hottest 200 | 40 200 200 Shots Fired 113 | 22 67 24 Gun 85 | 22 63 . Cannon . | . . . Launcher . | . . . Special 28 | . 4 24 Kinetic 72 | 22 50 . Thermal 41 | . 17 24 Explosive . | . . . Electromagnetic . | . . . Robot Hit Streak 11 | 5 11 . Robot Miss Streak 3 | 3 2 3 Penetration Max . | . . . Secondary Targets . | . . . Shots Hit Robots 65 | 14 51 . Core Hits 25 | 6 19 . Critical Hits . | . . . Critical Kills . | . . . Critical Parts Destroyed . | . . . Melee Attacks . | . . . Impact . | . . . Slashing . | . . . Piercing . | . . . Sneak Attacks . | . . . Combat Hostiles . | . . . Follow-up Attacks . | . . . Damage Inflicted 758 | 166 592 . Guns 662 | 166 496 . Cannons . | . . . Explosions . | . . . Melee . | . . . Ramming . | . . . Kinetic 525 | 166 359 . Thermal 233 | . 233 . Explosive . | . . . Electromagnetic . | . . . Impact . | . . . Slashing . | . . . Piercing . | . . . Highest Corruption . | . . . Average Corruption . | . . . Corruption Purged . | . . . Overload Shots . | . . . Overflow Damage . | . . . Projectiles . | . . . Explosions . | . . . Melee . | . . . Knockbacks . | . . . Impact . | . . . Kinetic . | . . . Secondary . | . . . Self-Inflicted Damage . | . . . Shots . | . . . Rammed . | . . . Targets Rammed . | . . . Kicked . | . . . Crushed . | . . . Highest Temperature 164 | . 140 164 Average Temperature 54 | . 41 65 Received Heat Transfer 693 | . 393 300 Siege Activations . | . . . Robots Corrupted . | . . . Combat Hostiles . | . . . Parts Fried . | . . . Impact Corruptions . | . . . Robots Melted . | . . . Combat Hostiles . | . . . Parts Melted 1 | . 1 . Heat Transferred 607 | . 607 . Parts Sabotaged . | . . . Parts Stolen . | . . . Parts Stripped . | . . . Power Chain Reactions . | . . . Missiles Intercepted . | . . . Alert | -11 -10 -10 ------- Run | Scr Mat Min Peak Influence 159 | 15 159 . Initial 9 | . 9 . Average 39 | 2 67 . Maximum Alert Level . | . . . Low Security (%) 100 | 100 100 100 Level 1 . | . . . Level 2 . | . . . Level 3 . | . . . Level 4 . | . . . Level 5 . | . . . High Security . | . . . Max Security . | . . . Squads Dispatched 1 | . 1 . Investigation . | . . . Extermination . | . . . Reinforcement 1 | . 1 . Assault . | . . . Garrison . | . . . Intercept . | . . . Construction Impeded . | . . . Haulers Reinforced . | . . . Stealth | -11 -10 -10 --------- Run | Scr Mat Min Distress Signals . | . . . Communications Jammed . | . . . Distress Signals . | . . . Times Spotted 14 | . 12 2 Peak Tracking Total 3 | . 3 2 Tactical Retreats 2 | . 2 . Traps | -11 -10 -10 ------- Run | Scr Mat Min Traps Triggered . | . . . Indirectly . | . . . Trap Hack Attempts . | . . . Triggered . | . . . Disarmed . | . . . Reprogrammed . | . . . Reused . | . . . Traps Extracted . | . . . Installed . | . . . Triggered 1 | . . 1 Machines | -11 -10 -10 ---------- Run | Scr Mat Min Machines Disabled . | . . . Max in Single Turn . | . . . Machines Sabotaged . | . . . Garrisons Compromised . | . . . Overloaded Fab Kills . | . . . Fab Network Shutdowns . | . . . Hacking | -11 -10 -10 --------- Run | Scr Mat Min Machines Accessed 2 | . 2 . Terminals 2 | . 2 . Fabricators . | . . . Repair Stations . | . . . Recycling Units . | . . . Scanalyzers . | . . . Garrison Access . | . . . Total Hacks 8 | . 8 . Successful 3 | . 3 . Failed 5 | . 5 . Catastrophic . | . . . Database Lockouts . | . . . Manual 3 | . 3 . Terminals 8 | . 8 . Fabricators . | . . . Repair Stations . | . . . Recycling Units . | . . . Scanalyzers . | . . . Garrison Access . | . . . Terminal Hacks 1 | . 1 . Zone Layout 1 | . 1 . Fabricator Hacks . | . . . Repair Station Hacks . | . . . Recycling Unit Hacks . | . . . Scanalyzer . | . . . Garrison Access Hacks . | . . . Unauthorized Hacks 2 | . 2 . Terminals 2 | . 2 . Track 2 | . 2 . Fabricators . | . . . Repair Stations . | . . . Recycling Units . | . . . Scanalyzers . | . . . Garrison Access . | . . . Data Cores Recovered . | . . . Used . | . . . Hacking Detections 1 | . 1 . Full Trace Events . | . . . Feedback Events . | . . . Feedback Blocked . | . . . Robot Schematics Acquired . | . . . Robots Built . | . . . Matter . | . . . Time . | . . . Total Robot Build Rating . | . . . Part Schematics Acquired . | . . . Parts Built . | . . . Matter . | . . . Time . | . . . Total Part Build Rating . | . . . Parts Repaired . | . . . Time . | . . . Parts Recycled . | . . . Recycled Matter . | . . . Retrieved Matter . | . . . Retrieved Components . | . . . Parts Scanalyzed . | . . . Part Schematics Acquired . | . . . Parts Damaged . | . . . Bothacking | -11 -10 -10 ------------ Run | Scr Mat Min Used RIF Installer . | . . . Robots Hacked . | . . . Non-combat . | . . . Combat . | . . . Robot Hacks Applied . | . . . Relay Couplers Released . | . . . Robots Rewired . | . . . Allies Hacked . | . . . Hacks Repelled . | . . . Allies | -11 -10 -10 -------- Run | Scr Mat Min Total Allies . | . . . Largest Group . | . . . Highest-Rated Group . | . . . Highest-Rated Ally . | . . . Total Orders . | . . . Ally Attacks . | . . . Total Damage . | . . . Kills . | . . . Allies Corrupted . | . . . Allies Melted . | . . . Intel | -11 -10 -10 ------- Run | Scr Mat Min Robot Analysis Total . | . . . Derelict Logs Recovered . | . . . Drone Launches . | . . . Drone Recoveries . | . . . Exploration | -11 -10 -10 ------------- Run | Scr Mat Min Turns Passed 719 | 128 412 179 Spaces Moved 391 | 71 248 72 Core 2 | 2 . . Treads 85 | 18 66 1 Legs . | . . . Wheels 304 | 51 182 71 Hover . | . . . Flight . | . . . Fastest Speed 50 | 50 90 90 Average Speed 106 | 113 108 90 Slowest Speed 160 | 160 160 160 Overloaded Moves . | . . . Propulsion Burnouts . | . . . Robots Hopped . | . . . Cave-ins Triggered . | . . . Exploration Rate (%) 19 | 5 40 14 Regions Visited 2 Branch Regions 1 Pre-discovered Areas . | . . . Known Exits Taken . | . . . Unknown Exits Taken 2 | 1 1 . Scrap Searched . | . . . Spaces Dug 6 | . . 6 Terrain Destroyed 12 | . . 12 Melee . | . . . Projectile 12 | . . 12 AOE . | . . . Terrain Rammed . | . . . Walls Destroyed . | . . . Machines Disabled . | . . . Actions | -11 -10 -10 --------- Run | Scr Mat Min Total 529 | 95 321 113 Wait 47 | . 25 22 Move 389 | 70 247 72 Hop . | . . . Pick Up 9 | 6 3 . Fast Attach 8 | 6 2 . Attach 8 | 1 3 4 Detach . | . . . Swap 3 | 1 1 1 Drop 1 | . 1 . Fire 64 | 11 39 14 Melee . | . . . Ram . | . . . Kick . | . . . Crush . | . . . Escape Stasis . | . . . Rewire . | . . . Trap . | . . . Miscellaneous . | . . . Route ------- -11/Scrapyard -10/Materials (discovered 4 exits: [*Mat x2] / [*Min x2]) -10/Mines History --------- Turn | Location | Event 21 | -11/Scrapyard | Discovered new exit (range 16) 129 | -11/Scrapyard | Entered Materials 151 | -10/Materials | Discovered new exit (range 10) 151 | -10/Materials | Discovered new exit (range 16) 253 | -10/Materials | Discovered new exit (range 6) 335 | -10/Materials | Build established: Mutant 364 | -10/Materials | Discovered new exit (range 12) 462 | -10/Materials | Core integrity fell below 50% 488 | -10/Materials | Lost 5 parts (1p1n3w) 541 | -10/Materials | Entered Mines 561 | -10/Mines | Met a Derelict bent on vengeance 570 | -10/Mines | Excavation squad dispatched 570 | -10/Mines | A large section of the Mines collapsed 689 | -10/Mines | Core integrity fell below 20% 720 | -10/Mines | Destroyed by G-47 Trooper with Particle Gun Last Messages --------------- 00459_ Acquired 5 matter. 00500_ Acquired Mining Laser. 00516_ G-34 Mercenary destroyed. 00524_ Acquired 20 matter. 00537_ Acquired Mining Laser. LOCATION=UNKNOWN GOAL=ESCAPE 00542_ A derelict wanders into view. 00570_ 90-MIJ(g) crushed by falling debris. 00570_ ALERT: Suspicious cave-in, suspected derelict activity in mines. Dispatching escorted excavation squad. 00639_ The unstable cave ceiling collapses. 00655_ Lgt. Treads destroyed. 00673_ The unstable cave ceiling collapses. 00673_ G-47 Trooper crushed by falling debris. 00674_ Mining Laser destroyed. 00680_ Lgt. Ion Engine destroyed. 00684_ Mining Laser destroyed. 00688_ Wheel destroyed. 00696_ Mining Laser destroyed. Map ----- +----------------------------------------------------+ | | | | | | | | | | | | | | | | | | | | | ??????????????????????########????????????????? | | ?????????????????????## ####?????????????? | | ?????????????????????# !! #?????????????? | | ??????####???????????# ! #?????????????? | | ####### ##??????????# ! #?????????????? | | ##?????????# !! #?????????????? | | ##????????# #?????????????? | | ##### #????????# #?????????????? | | ??????## #????????###### #####?????????????? | | ???????## ##????####?????# #?????????????????? | | ????????## #????## ##????# #?????????????????? | | ?????????# #????# ##???# ##????????????????? | | ?????????# ###### #####g;###??????????????? | | ?????????# # g# #??????????????? | | ?????????##"### ## ## ;## ##??????????????? | | ??????????###?# ### ##@### #??????????????? | | ??????????????# #?#### ###?# ##??????????????? | | ??????????????# #????## ###"##??????????????? | | ??????????????# #?????###"# #??????????????? | | ??????????????# #??????### #??????????????? | | ??????????????# #????????##### #??????????????? | | ??????????????# #????????????# #??????????????? | | ??????????????? ?????????????# #??????????????? | | ??????????????? ????????????? ??????????????? | | ??????????????? ????????????? ""??????????????? | | ??????????????? ????????????? """?????????????? | | ??????????????? ????????????? """?????????????? | | ???????????????#????????????# ?????????????? | | ????????????????????????????#####?????????????? | | ??????????????????????????????????????????????? | | ??????????????????????????????????????????????? | | ??????????????????????????????????????????????? | | ??????????????????????????????????????????????? | | ??????????????????????????????????????????????? | | ??????????????????????????????????????????????? | | ??????????????????????????????????????????????? | | ??????????????????????????????????????????????? | | ??????????????????????????????????????????????? | | ??????????????????????????????????????????????? | | ??????????????????????????????????????????????? | +----------------------------------------------------+ Best States ------------- Heat Dissipation 25 Energy Generation 14 Energy Capacity 160 Matter Stores 300 Matter Capacity 300 Sight Range 16 Terrain Scan Density 10 Evasion (%) 42 Recoil Reduction 1 Item Schematics ----------------- None Robot Schematics ------------------ None Fabricated ------------ Nothing Alien Tech Used ----------------- None Achievements -------------- None Challenges ------------ None Game ------ Seed SuperchargedVortexSabre Manual? 0 Play Time 00:10:23 Cumulative 33.2 hours Start 2021.10.25 @ 20:02:09 End 2021.10.25 @ 20:10:42 Sessions 1 Manual Loads 0 Difficulty Rogue Special Mode None Game No. 33 Rogue 31 Adventurer 2 Explorer 0 Win Type - Total 0 Types 0/0/0/0/0/0/0/0/0 Lore% 26 Gallery% 25 Achievement% 26 Wizard Run 0 Options --------- ASCII 0 Keyboard 0 Movement Mouse Keybinds 0 Fullscreen 1 Font 18/TerminusBold Map View 76x50 Tactical HUD 1 Map Filters NONE Filters NONE Steam 1 RUN: dbfdd510-2ab2-42f6-81d1-517e27dd1d91